Cogmind - Beta 13 @@@ ROGUE MODE // 2024.04.03 @ 23:51:58 Player: KoT Result: Destroyed by Y-54 Guardian with Flak Gun Performance ------------- Evolutions (3) 1500 Regions Visited (7) 1400 Robots Destroyed (57) 285 Value Destroyed (1873) 1873 Prototype IDs (6) 120 Alien Tech Used (0) 0 Bonus (906) 906 TOTAL SCORE: 6084 Bonus ------- High Alert Combat Kills 26 Follower Combat Kills 180 Entered Garrisons 200 Used RIF Installer 500 Cogmind --------- Core Integrity 0/700 Matter 207/300 Energy 85/100 System Corruption 0% Temperature Cool (6) Movement Core (1450) Ox28 Location -7/Garrison Parts ------- > --- POWER (2) -------- (None) > --- PROPULSION (2) --- (None) > --- UTILITY (5) ------ Huge Storage Unit Launcher Guidance Computer > --- WEAPON (4) ------- KE Penetrator > --- INVENTORY (25) --- Nuclear Core Light Nuclear Core Light Fission Core Light Antimatter Reactor Improved Heat Sink Huge Storage Unit High-capacity Matter Pod (200) Experimental Sensor Array Improved Terrain Scanner Core Analyzer Core Analyzer Core Analyzer Improved Phase Shifter System Shield Authchip [R/Combat] Authchip [Weapon] Beamcaster Improved Grenade Launcher Concussive RPG (1) Datajack Peak State ------------ > --- POWER ------------ Light Nuclear Core Improved Deuterium Engine > --- PROPULSION ------- Light Treads Armored Treads > --- UTILITY ---------- Improved Heat Sink Huge Storage Unit Improved Signal Interpreter Launcher Guidance Computer Kinecellerator > --- WEAPON ----------- Gatling Laser Gatling Laser Improved Grenade Launcher Datajack > --- INVENTORY -------- Nuclear Core Light Nuclear Core Light Fission Core Light Antimatter Reactor Light Treads Improved Heat Sink Huge Storage Unit High-capacity Matter Pod Experimental Sensor Array Improved Terrain Scanner Core Analyzer Core Analyzer Core Analyzer Improved Phase Shifter System Shield Authchip [R/Combat] Authchip [Weapon] Heavy Laser Beamcaster KE Penetrator Grenade Launcher Improved Grenade Launcher Concussive RPG Datajack Enhanced Flamer [Rating: 47] Favorites ----------- Power Ion Engine Engine Ion Engine Power Core Light Nuclear Core Propulsion Light Treads Treads Light Treads Utility Huge Storage Unit Device Kinecellerator Storage Huge Storage Unit Processor Improved Signal Interpreter Hackware Authchip [Device] Protection Light Armor Plating Weapon Light Assault Rifle Energy Gun Gatling Laser Ballistic Gun Light Assault Rifle Launcher Improved Grenade Launcher Special Weapon Enhanced Flamer Special Melee Weapon Datajack Build | -11 -10 -10 -10 -9 -8 -7 -7 ------- Run | Yrd Mat Min Exi Min Mat Fac Gar Slots Evolved 6 | . . . . . 4 2 . Power 1 | . . . . . 1 . . Propulsion . | . . . . . . . . Utility 3 | . . . . . 2 1 . Weapon 2 | . . . . . 1 1 . Parts Attached 62 | 6 3 6 . 1 22 10 14 Power 8 | 1 1 . . . 3 2 1 Engine 4 | 1 1 . . . 1 1 . Core 4 | . . . . . 2 1 1 Reactor . | . . . . . . . . Propulsion 10 | 2 . 1 . . 4 2 1 Treads 10 | 2 . 1 . . 4 2 1 Leg . | . . . . . . . . Wheel . | . . . . . . . . Hover . | . . . . . . . . Flight . | . . . . . . . . Utility 23 | 1 2 4 . . 9 3 4 Device 11 | . . 3 . . 3 2 3 Storage 7 | 1 2 1 . . 3 . . Processor 3 | . . . . . 2 . 1 Hackware 1 | . . . . . 1 . . Protection 1 | . . . . . . 1 . Artifact . | . . . . . . . . Weapon 21 | 2 . 1 . 1 6 3 8 Energy Gun 4 | . . . . . . 2 2 Energy Cannon . | . . . . . . . . Ballistic Gun 12 | 2 . 1 . 1 6 1 1 Ballistic Cannon . | . . . . . . . . Launcher 2 | . . . . . . . 2 Special Weapon 1 | . . . . . . . 1 Impact Weapon . | . . . . . . . . Slashing Weapon . | . . . . . . . . Piercing Weapon . | . . . . . . . . Special Melee Weapon 2 | . . . . . . . 2 Unidentified Prototypes 1 | . . 1 . . . . . Parts Lost 34 | . . 2 . . 3 12 17 Power 5 | . . . . . 1 2 2 Propulsion 6 | . . 1 . . . 2 3 Utility 9 | . . . . . 1 4 4 Weapon 14 | . . 1 . . 1 4 8 Highest Loss Streak 11 | . . 2 . . 2 8 11 To Critical Strikes . | . . . . . . . . Average Slot Usage (%) 97 | . 92 99 100 100 96 90 97 Engine 11 | . 14 14 14 14 14 . 6 Core 3 | . . . . . 3 12 6 Treads 21 | . 28 27 28 28 18 14 14 Device 12 | . . 12 14 14 14 9 14 Storage 11 | . 21 15 14 14 9 7 7 Processor 6 | . . . . . 9 7 14 Energy Gun 3 | . . . . . . 1 13 Ballistic Gun 21 | . 28 27 28 28 26 24 . Launcher 1 | . . . . . . . 6 Special Melee Weapon 1 | . . . . . . . 4 Naked Turns . | . . . . . . . . Heaviest Build 115 | 13 16 28 28 29 104 102 115 Greatest Support 40 | 40 40 40 40 40 40 40 40 Greatest Overweight (x) 29 | . . . . . 2 2 29 Average Overweight (x) . | . . . . . 1 2 2 Largest Inventory Capacity 25 | 8 8 15 15 15 25 25 25 Average Capacity 19 | 7 8 13 15 15 23 25 25 Most Carried 25 | 2 8 13 14 15 25 25 25 Average Carried 16 | 1 5 10 13 13 20 23 21 Final Capacity 25 | 8 8 15 15 15 25 25 25 Final Carried 24 | 2 8 13 13 14 24 23 20 Class Distribution -------------------- 46% | Mutant 19% | Scavenger-Gunner 16% | Scavenger-Skirmisher 12% | Skirmisher Dominant Class ---------------- Mutant | -10/Materials Mutant | -10/Mines Mutant | -10/Exiles Mutant | -9/Mines Skirmisher | -8/Materials Scavenger-Skirmisher | -7/Factory Scavenger-Gunner | -7/Garrison Resources | -11 -10 -10 -10 -9 -8 -7 -7 ----------- Run | Yrd Mat Min Exi Min Mat Fac Gar Matter Collected 1653 | 180 262 185 . . 607 211 208 Remotely . | . . . . . . . . Salvage Created 2337 | . 263 92 . . 986 500 496 Parts 114 | . 17 2 . . 54 18 23 Haulers Intercepted 5 | . 1 . . . 4 . . Recyclers Shooed 5 | . . . . . 4 1 . Parts Field Recycled . | . . . . . . . . Retrieved Matter . | . . . . . . . . Parts Self-Destructed . | . . . . . . . . Prevented . | . . . . . . . . Kills | -11 -10 -10 -10 -9 -8 -7 -7 ------- Run | Yrd Mat Min Exi Min Mat Fac Gar Combat Hostiles Destroyed 41 | . 4 3 . . 10 8 16 Guns 33 | . 4 3 . . 10 8 8 AOE 7 | . . . . . . . 7 Classes Destroyed 11 | . 4 1 . . 4 1 1 Worker 2 | . 1 . . . 1 . . Builder 1 | . . . . . 1 . . Hauler 5 | . 1 . . . 4 . . Recycler 5 | . . . . . 4 1 . Watcher 4 | . 2 . . . 2 . . Swarmer 7 | . . . . . 3 . 4 Grunt 23 | . 4 2 . . 4 4 9 Sentry 8 | . . . . . 3 3 2 Specialist 1 | . . . . . . . 1 Programmer 1 | . . . . . . 1 . Assembled 1 | . . 1 . . . . . Best Kill Streak 5 | . 3 2 . . 4 5 4 Combat Bots Only 4 | . 2 2 . . 4 3 4 Max Kills in Single Turn 2 | . 2 1 . . 2 1 2 Gunslinging 1 | . . . . . 1 . . Exploded 2 | . . . . . . . 2 Melee . | . . . . . . . . Uniques/NPCs Destroyed . | . . . . . . . . Combat | -11 -10 -10 -10 -9 -8 -7 -7 -------- Run | Yrd Mat Min Exi Min Mat Fac Gar Hostile Shots Fired 554 | . 34 27 . . 69 177 247 Missed 184 | . 12 5 . . 26 65 76 Damage Taken 4178 | . 305 327 . . 636 1165 1745 Core 950 | . 115 69 . . 65 194 507 Absorbed by Shields . | . . . . . . . . Core Remaining (%) 71 | 100 . . . 26 88 . . Volleys Fired 164 | . 27 14 . . 52 36 35 Largest 4 | . 2 2 . . 3 4 4 Hottest 259 | . 40 40 . . 69 132 259 Shots Fired 416 | . 54 26 . . 144 104 88 Gun 392 | . 54 26 . . 144 104 64 Cannon . | . . . . . . . . Launcher 17 | . . . . . . . 17 Special 7 | . . . . . . . 7 Kinetic 332 | . 54 26 . . 144 93 15 Thermal 67 | . . . . . . 11 56 Explosive 17 | . . . . . . . 17 Electromagnetic . | . . . . . . . . Robot Hit Streak 19 | . 7 4 . . 10 19 11 Robot Miss Streak 4 | . 2 1 . . 4 2 3 Penetration Max . | . . . . . . . . Secondary Targets 6 | . 2 . . . 3 1 . Max Gunslinging Chain 1 | . 1 . . . 1 1 . Shots Hit Robots 261 | . 37 16 . . 83 77 48 Core Hits 134 | . 17 9 . . 35 33 40 Critical Kills 1 | . . . . . 1 . . Critical Parts Destroyed 2 | . . 1 . . 1 . . Critical Strikes 3 | . . 1 . . 2 . . Destroy 3 | . . 1 . . 2 . . Melee Attacks 1 | . . . . . . . 1 Impact . | . . . . . . . . Slashing . | . . . . . . . . Piercing . | . . . . . . . . Sneak Attacks . | . . . . . . . . Combat Hostiles . | . . . . . . . . Follow-up Attacks . | . . . . . . . . Damage Inflicted 4521 | . 518 189 . . 1317 965 1532 Guns 3596 | . 392 174 . . 1315 962 753 Cannons . | . . . . . . . . Explosions 883 | . 126 . . . . . 757 Melee . | . . . . . . . . Ramming 20 | . . 15 . . 2 3 . Kinetic 2703 | . 392 174 . . 1315 762 60 Thermal 1041 | . 126 . . . . 200 715 Explosive 757 | . . . . . . . 757 Electromagnetic . | . . . . . . . . Impact . | . . . . . . . . Slashing . | . . . . . . . . Piercing . | . . . . . . . . Highest Corruption . | . . . . . . . . Average Corruption . | . . . . . . . . Corruption Purged . | . . . . . . . . Corruption Blocked . | . . . . . . . . Overload Shots . | . . . . . . . . Overflow Damage 37 | . 30 . . . . . 7 Projectiles . | . . . . . . . . Explosions 37 | . 30 . . . . . 7 Melee . | . . . . . . . . Knockbacks . | . . . . . . . . Impact . | . . . . . . . . Kinetic . | . . . . . . . . Secondary . | . . . . . . . . Self-Inflicted Damage 35 | . . . . . . . 35 Shots 2 | . . . . . . . 2 Rammed 9 | . . 5 . 1 1 2 . Targets Rammed 9 | . . 5 . 1 1 2 . Kicked . | . . . . . . . . Crushed . | . . . . . . . . Highest Temperature 611 | . 25 60 . . 143 293 611 Average Temperature 81 | . 10 33 . . 36 129 117 Received Heat Transfer 1701 | . 165 189 . . 243 459 645 Effects 9 | . . . . . . 1 8 Shutdowns 2 | . . . . . . . 2 Interference 3 | . . . . . . 1 2 Matter Decay 1 | . . . . . . . 1 Short Circuit 2 | . . . . . . . 2 Damage (core) 1 | . . . . . . . 1 Siege Activations . | . . . . . . . . Robots Corrupted . | . . . . . . . . Combat Hostiles . | . . . . . . . . Parts Fried . | . . . . . . . . Impact Corruptions . | . . . . . . . . Robots Melted 1 | . . . . . . . 1 Combat Hostiles 1 | . . . . . . . 1 Parts Melted 1 | . . . . . . . 1 Heat Transferred 2180 | . 100 . . . . 385 1695 Parts Sabotaged . | . . . . . . . . Parts Stolen . | . . . . . . . . Parts Stripped . | . . . . . . . . Power Chain Reactions . | . . . . . . . . Alert | -11 -10 -10 -10 -9 -8 -7 -7 ------- Run | Yrd Mat Min Exi Min Mat Fac Gar Peak Influence 571 | . 220 47 . 86 216 195 571 Initial 65 | . . 17 . . 33 65 37 Average 103 | . 86 15 . 7 61 74 272 Maximum Alert Level 2 | . 1 . . . 1 . 2 Low Security (%) 81 | 100 76 100 . 100 99 100 34 Level 1 13 | . 23 . . . . . 45 Level 2 4 | . . . . . . . 20 Level 3 . | . . . . . . . . Level 4 . | . . . . . . . . Level 5 . | . . . . . . . . High Security . | . . . . . . . . Max Security . | . . . . . . . . Squads Dispatched 7 | . 1 . . 1 1 4 . Investigation 2 | . 1 . . . 1 . . Extermination 1 | . . . . . . 1 . Reinforcement . | . . . . . . . . Assault 1 | . . . . 1 . . . Garrison 3 | . . . . . . 3 . Intercept . | . . . . . . . . Searches Triggered . | . . . . . . . . Construction Impeded . | . . . . . . . . Haulers Reinforced . | . . . . . . . . Active Scanning Responses . | . . . . . . . . Cargo Convoy Interrupts . | . . . . . . . . Stealth | -11 -10 -10 -10 -9 -8 -7 -7 --------- Run | Yrd Mat Min Exi Min Mat Fac Gar Distress Signals 6 | . . 2 . . 4 . . Communications Jammed . | . . . . . . . . Distress Signals . | . . . . . . . . Times Spotted 58 | . 9 3 . 4 18 8 16 Peak Tracking Total 4 | . 2 2 . 4 4 3 4 Tactical Retreats 1 | . . 1 . . . . . Traps | -11 -10 -10 -10 -9 -8 -7 -7 ------- Run | Yrd Mat Min Exi Min Mat Fac Gar Traps Triggered 1 | . 1 . . . . . . Indirectly . | . . . . . . . . Trap Hack Attempts 62 | . . . . . . . 62 Triggered 1 | . . . . . . . 1 Disarmed 2 | . . . . . . . 2 Reprogrammed 1 | . . . . . . . 1 Reused . | . . . . . . . . Traps Extracted . | . . . . . . . . Installed . | . . . . . . . . Triggered . | . . . . . . . . Machines | -11 -10 -10 -10 -9 -8 -7 -7 ---------- Run | Yrd Mat Min Exi Min Mat Fac Gar Machines Disabled 3 | . 2 . . . 1 . . Max in Single Turn 2 | . 2 . . . 1 . . Machines Repaired . | . . . . . . . . Machines Dismantled . | . . . . . . . . Machines Sabotaged . | . . . . . . . . Overloaded Fab Kills . | . . . . . . . . Hacking | -11 -10 -10 -10 -9 -8 -7 -7 --------- Run | Yrd Mat Min Exi Min Mat Fac Gar Machines Accessed 13 | . 2 1 4 . 3 1 2 Terminals 7 | . 2 1 . . 2 . 2 Fabricators . | . . . . . . . . Repair Stations . | . . . . . . . . Recycling Units . | . . . . . . . . Scanalyzers 1 | . . . . . 1 . . Garrison Access 1 | . . . . . . 1 . Total Hacks 26 | . 9 1 4 . 7 1 4 Successful 17 | . 5 1 4 . 5 1 1 Failed 9 | . 4 . . . 2 . 3 Catastrophic 2 | . 1 . . . 1 . . Database Lockouts . | . . . . . . . . Manual 3 | . 2 . 1 . . . . Terminals 18 | . 9 1 . . 4 . 4 Fabricators . | . . . . . . . . Repair Stations . | . . . . . . . . Recycling Units . | . . . . . . . . Scanalyzers 3 | . . . . . 3 . . Garrison Access 1 | . . . . . . 1 . Terminal Hacks 14 | . 5 1 4 . 3 . 1 Record 5 | . . 1 4 . . . . Prototype ID Bank 3 | . 2 . . . 1 . . Locate Traps 3 | . 2 . . . 1 . . Transport Status 1 | . . . . . 1 . . Hauler Manifests 1 | . 1 . . . . . . Garrison Registry 1 | . . . . . . . 1 Fabricator Hacks . | . . . . . . . . Repair Station Hacks . | . . . . . . . . Recycling Unit Hacks . | . . . . . . . . Scanalyzer 2 | . . . . . 2 . . Insert Component 1 | . . . . . 1 . . Analyze 1 | . . . . . 1 . . Garrison Access Hacks 1 | . . . . . . 1 . Unlock Access 1 | . . . . . . 1 . Unauthorized Hacks . | . . . . . . . . Terminals . | . . . . . . . . Fabricators . | . . . . . . . . Repair Stations . | . . . . . . . . Recycling Units . | . . . . . . . . Scanalyzers . | . . . . . . . . Garrison Access . | . . . . . . . . Data Cores Recovered . | . . . . . . . . Used . | . . . . . . . . Hacking Detections 8 | . 2 . . . 3 1 2 Full Trace Events 1 | . . . . . . . 1 Feedback Events . | . . . . . . . . Feedback Blocked . | . . . . . . . . Robot Schematics Acquired . | . . . . . . . . Robots Built . | . . . . . . . . Authchips . | . . . . . . . . Time . | . . . . . . . . Total Robot Build Rating . | . . . . . . . . Part Schematics Acquired 1 | . . . . . 1 . . Parts Built . | . . . . . . . . Authchips . | . . . . . . . . Time . | . . . . . . . . Total Part Build Rating . | . . . . . . . . Parts Repaired . | . . . . . . . . Time . | . . . . . . . . Parts Recycled . | . . . . . . . . Recycled Matter . | . . . . . . . . Retrieved Matter . | . . . . . . . . Retrieved Components . | . . . . . . . . Parts Scanalyzed 1 | . . . . . 1 . . Part Schematics Acquired 1 | . . . . . 1 . . Parts Damaged 1 | . . . . . 1 . . Bothacking | -11 -10 -10 -10 -9 -8 -7 -7 ------------ Run | Yrd Mat Min Exi Min Mat Fac Gar Used RIF Installer 1 | . . . . . . . 1 Robots Hacked . | . . . . . . . . Non-combat . | . . . . . . . . Combat . | . . . . . . . . Robot Hacks Applied . | . . . . . . . . Relay Couplers Released . | . . . . . . . . Fabnet Peak Effective % . | . . . . . . . . Robots Rewired . | . . . . . . . . Allies Hacked . | . . . . . . . . Hacks Repelled . | . . . . . . . . Allies | -11 -10 -10 -10 -9 -8 -7 -7 -------- Run | Yrd Mat Min Exi Min Mat Fac Gar Total Allies 4 | . . 3 . 1 . . . Largest Group 4 | . . 3 3 4 2 . . Highest-Rated Group 71 | . . 40 40 71 47 . . Highest-Rated Ally 31 | . . 16 16 31 31 . . Total Orders . | . . . . . . . . Ally Attacks 27 | . . . . 15 12 . . Total Damage 348 | . . . . 208 140 . . Kills 6 | . . . . 4 2 . . Allies Corrupted . | . . . . . . . . Allies Melted . | . . . . . . . . Intel | -11 -10 -10 -10 -9 -8 -7 -7 ------- Run | Yrd Mat Min Exi Min Mat Fac Gar Robot Analysis Total . | . . . . . . . . Derelict Logs Recovered 3 | . . 2 . 1 . . . Drone Launches . | . . . . . . . . Drone Recoveries . | . . . . . . . . Exploration | -11 -10 -10 -10 -9 -8 -7 -7 ------------- Run | Yrd Mat Min Exi Min Mat Fac Gar Turns Passed 7086 | 74 646 1140 932 399 1877 538 1480 Spaces Moved 2997 | 43 349 675 582 247 592 126 383 Core 9 | 7 . . . . . . 2 Treads 2988 | 36 349 675 582 247 592 126 381 Legs . | . . . . . . . . Wheels . | . . . . . . . . Hover . | . . . . . . . . Flight . | . . . . . . . . Fastest Speed 50 | 50 160 160 160 160 160 320 325 Average Speed 211 | 142 160 160 160 160 279 320 330 Slowest Speed 1500 | 160 160 160 160 160 320 325 1500 Overloaded Moves . | . . . . . . . . Propulsion Burnouts . | . . . . . . . . Robots Hopped . | . . . . . . . . Cave-ins Triggered . | . . . . . . . . Exploration Rate (%) 49 | 4 50 98 94 58 41 4 44 Regions Visited 7 Branch Regions 3 Pre-discovered Areas . | . . . . . . . . Known Exits Taken 3 | . . 1 . . 1 1 . Unknown Exits Taken 4 | 1 1 . 1 1 . . . Scrap Searched 2 | . . 2 . . . . . Spaces Dug . | . . . . . . . . Terrain Destroyed 102 | . 24 . . . . . 78 Melee . | . . . . . . . . Projectile . | . . . . . . . . AOE 102 | . 24 . . . . . 78 Terrain Rammed . | . . . . . . . . Walls Destroyed . | . . . . . . . . Machines Disabled . | . . . . . . . . Actions | -11 -10 -10 -10 -9 -8 -7 -7 --------- Run | Yrd Mat Min Exi Min Mat Fac Gar Total 3395 | 56 389 709 583 251 707 189 511 Wait 10 | . . . . . . 6 4 Move 2990 | 42 348 674 581 246 591 125 383 Hop . | . . . . . . . . Pick Up 72 | 8 9 8 1 2 25 9 10 Fast Attach 3 | . . . . . 3 . . Attach 44 | 6 2 3 . 1 9 10 13 Detach 5 | . . 1 . . 3 . 1 Swap 15 | . 1 3 . . 10 . 1 Drop 20 | . 2 1 1 1 13 1 1 Fire 164 | . 27 14 . . 52 36 35 Melee 1 | . . . . . . . 1 Ram . | . . . . . . . . Kick . | . . . . . . . . Crush 9 | . . 5 . 1 1 2 . Escape Stasis . | . . . . . . . . Rewire . | . . . . . . . . Trap 62 | . . . . . . . 62 Miscellaneous . | . . . . . . . . Route ------- -11/Scrapyard -10/Materials (discovered 2 exits: [*Mat] / *Min) -10/Mines (discovered 3 exits: [*Mat x2] / *Exi) -10/Exiles (discovered 2 exits: [*Min x2]) -9/Mines -8/Materials -7/Factory -7/Garrison (discovered 3 exits: [*Fac x3]) History --------- Turn | Location | Event 27 | -11/Scrapyard | Discovered new exit (range 16) 75 | -11/Scrapyard | Entered Materials 304 | -10/Materials | Build established: Mutant 304 | -10/Materials | Discovered new exit (range 15) 450 | -10/Materials | Discovered new exit (range 16) 721 | -10/Materials | Entered Mines 724 | -10/Mines | Core integrity fell below 50% 737 | -10/Mines | Met a Derelict bent on vengeance 817 | -10/Mines | Excavation squad dispatched 817 | -10/Mines | A large section of the Mines collapsed 867 | -10/Mines | Found a damaged Exp. Sensor Array with a note attached 870 | -10/Mines | Found Prototype Device 872 | -10/Mines | Identified Exp. Sensor Array 890 | -10/Mines | Identified exit to Exiles 959 | -10/Mines | Deemed a non-threat by the Exiles lab entrance 1089 | -10/Mines | Discovered new exit (range 6) 1398 | -10/Mines | Assisted by bots powering up and referring to "LRC-V3" 1421 | -10/Mines | Learned Materials emergency access door positions 1558 | -10/Mines | Discovered new exit (range 14) 1861 | -10/Mines | Entered Exiles 1861 | -10/Exiles | Found Exiles lab abandoned 1861 | -10/Exiles | Accompanied by 3 allies 1885 | -10/Exiles | Discovered new exit (range 15) 2407 | -10/Exiles | Discovered new exit (range 14) 2793 | -10/Exiles | Entered Mines 2793 | -9/Mines | Accompanied by 3 allies 2817 | -9/Mines | Learned Materials terminal intel 2827 | -9/Mines | A weapon hastily lodged in a ceiling crevice suddenly fell to the ground 3114 | -9/Mines | Discovered new exit (range 10) 3115 | -9/Mines | Met a Derelict testing a Signal Generator 3192 | -9/Mines | Entered Materials 3192 | -8/Materials | Accompanied by 2 allies 3192 | -8/Materials | Evolved 4 slots: Power x1, Utility x2, Weapon x1 3194 | -8/Materials | Loaded intel: 12 terminal locations 3845 | -8/Materials | Build established: Skirmisher 4519 | -8/Materials | Build established: Scavenger-Skirmisher 4964 | -8/Materials | Discovered new exit (range 16) 5063 | -8/Materials | Identified exit to Factory 5069 | -8/Materials | Entered Factory 5069 | -7/Factory | Evolved 2 slots: Utility x1, Weapon x1 5315 | -7/Factory | Garrison activated, responded to threat 5574 | -7/Factory | Lost 8 parts (2p2n1u3w) 5601 | -7/Factory | Identified exit to Garrison 5607 | -7/Factory | Entered Garrison 5642 | -7/Garrison | Triggered checkpoint 5948 | -7/Garrison | Discovered new exit (range 67) 5948 | -7/Garrison | Discovered new exit (range 57) 5948 | -7/Garrison | Discovered new exit (range 48) 6054 | -7/Garrison | Triggered checkpoint 6058 | -7/Garrison | Build established: Scavenger-Gunner 6589 | -7/Garrison | Triggered checkpoint 6624 | -7/Garrison | Triggered checkpoint 6649 | -7/Garrison | Lost 3 parts (3w) 6704 | -7/Garrison | Triggered checkpoint 6943 | -7/Garrison | Installed Relay Interface Framework 6996 | -7/Garrison | Triggered checkpoint 7038 | -7/Garrison | Triggered checkpoint 7050 | -7/Garrison | Core integrity fell below 50% 7073 | -7/Garrison | Core integrity fell below 20% 7087 | -7/Garrison | Destroyed by Y-54 Guardian with Flak Gun Last Messages --------------- 07052_ Power failure, Imp. Deuterium Engine shutdown. 07052_ Overheating: Matter decay (-31). 07052_ Imp. Deuterium Engine destroyed. 07053_ Power failure, Lgt. Nuclear Core shutdown. 07055_ Overheating: System interference. 07055_ Imp. Signal Interpreter temporarily disabled. 07055_ Lgt. Treads destroyed. 07056_ Arm. Treads broken. 07056_ Overheating: Short circuit. 07056_ Broken Enh. Flamer destroyed. 07056_ Broken Arm. Treads destroyed. 07057_ Overheating: System interference. 07057_ Launcher Guidance Computer temporarily disabled. 07058_ Imp. Signal Interpreter destroyed. 07066_ Hvy. Laser destroyed. 07067_ Lgt. Nuclear Core destroyed. Map ----- +----------------------------------------------------+ | ?????????????????????????????????? | | ?????????????????????????????????? | | ?????????????????????????????????? | | ?????????????????????????????????? | | ?#########????????????############ | | ?# !+ +! #????????????# | | ?#!!# #!!#????????????# | | ?##/# #/##????????????# ######### | | ?#!!+ +!!#????????????# #???????? | | ?#! # # !#????????????# #???????? | | ?#### ####????????????# #???????? | | ???##+#???????????????# #???????? | | ???# #####???????????# #???????? | | ???# #???????????# #???????? | | ???# ### #???????????# #???????? | | ???####?# #?####??????# ###?????? | | ????????#+### #??????# #?????? | | ????????# + #??????# < #?????? | | ????????# #####??????# #?????? | | ??????### #??????????# ###?????? | | ??????#"# ###????????# #???????? | | ??????#" #????????# #???????? | | ??????#" #????????# #???????? | | ??????#" !* #????????# #???????? | | ??????#"#%%###??#####?# #???????? | | ??????###@! #??# #?# #####???? | | ???????# ##### ### # ##### | | ???????## Y | | ????????# Y | | ????????################# # #### # | | ????????????????????????#####?# ^ | | ??????????????????????????????#" " | | ??????????????????????????????#" " | | ??????????????????????????????#" " | | ??????????????????????????????#""" | | ??????????????????????????????#### | | ?????????????????????????????????? | | ?????????????????????????????????? | | ?????????????????????????????????? | | ?????????????????????????????????? | | | | | | | | | | | | | | | | | | | | | +----------------------------------------------------+ Best States ------------- Heat Dissipation 53 Energy Generation 25 Energy Capacity 400 Matter Stores 387 Matter Capacity 450 Sight Range 16 Robot Scan Range 20 Terrain Scan Range 16 Terrain Scan Density 10 Armor Coverage 150 Evasion (%) 40 Launcher Accuracy 20 Recoil Reduction 2 Kinecelleration 30 Authchip Count 3 Item Schematics ----------------- Exp. Sensor Array | -8/Materials | Scanalyzed Robot Schematics ------------------ None Fabricated ------------ Nothing Alien Tech Used ----------------- None Achievements -------------- Dramatic Entrance Challenges ------------ None Game ------ Seed FlakSingularityKit Manual? 0 Play Time 00:55:39 Cumulative 16.3 hours Start 2024.04.03 @ 22:54:54 End 2024.04.03 @ 23:51:58 Sessions 1 Manual Loads 0 Difficulty Rogue Special Mode None Game No. 29 Rogue 29 Adventurer 0 Explorer 0 Win Type - Total 0 Types 0/0/0/0/0/0/0/0/0 Lore% 19 Gallery% 17 Achievement% 16 Wizard Run 0 Options --------- Layout 1 ASCII 0 Keyboard 0 Movement Arrows Keybinds 0 Fullscreen 1 Font 24/Smallcaps Map View 50x35 Zoom Use 0% Tactical HUD 1 Map Filters NONE Filters NONE Steam 0 RUN: 9cc893fe-c0a7-4772-9c6f-172bf6e3b3e1